bitfinex/quotes_SOLUSD_20240727
["timestamp","ask_amount","ask_price","bid_price","bid_amount"]
[1722066822541,15.6131,186.3,186.26,17.8286]
[1722066823458,15.6131,186.3,186.27,12.46]
[1722066823640,15.6131,186.3,186.22,1.07370857]
[1722066823641,6.3378,186.33,186.29,5.3677]
[1722066823840,6.3378,186.33,186.22,1.07370857]
[1722066823841,21.6164134,186.35,186.32,12.46]
[1722066824047,16.0086,186.35,186.33,12.46]
[1722066825136,16.0086,186.35,186.32,12.46]
[1722066825556,21.3748,186.35,186.32,12.46]
[1722066826052,16.0086,186.35,186.34,12.46]
[1722066826255,5.3653,186.39,186.34,12.46]
[1722066826573,16.0086,186.4,186.26,1.07340411]
[1722066826574,16.0086,186.4,186.37,12.46]
[1722066826874,16.0086,186.4,186.38,12.46]
[1722066827050,16.0086,186.4,186.37,12.46]
[1722066827250,16.0086,186.4,186.36,12.46]
[1722066827964,21.3736,186.4,186.26,1.07308499]
[1722066828185,21.3736,186.4,186.34,12.46]
[1722066828470,16.0086,186.4,186.34,12.46]
[1722066828980,16.0086,186.4,186.27,1.07319253]
[1722066829268,5.3653,186.38,186.27,1.07319253]
[1722066829479,5.3653,186.38,186.31,12.46]
[1722066830075,5.3653,186.38,186.27,1.07319253]
[1722066830248,5.3653,186.38,186.31,12.46]
[1722066830857,17.8253,186.38,186.32,5.367]
[1722066831057,45.0,186.37,186.32,5.367]
[1722066832172,45.0,186.37,186.26,20.0]
[1722066832173,50.3658,186.37,186.31,5.3673]
[1722066833661,5.3662,186.35,186.29,5.3677]
[1722066833867,5.3662,186.35,186.26,20.0]
[1722066833868,65.0,186.37,186.23,24.94]
[1722066834069,65.0,186.37,186.29,5.3677]
[1722066834070,5.3663,186.35,186.29,5.3677]
[1722066834372,5.3663,186.35,186.23,24.94]
[1722066834373,45.0,186.34,186.22,1.07353826]
[1722066834777,45.0,186.34,186.29,5.3679]
[1722066834959,45.0,186.34,186.21,434.7886]
[1722066834960,50.3665,186.34,186.28,5.3681]
[1722066835155,16.0086,186.33,186.28,5.3681]
[1722066835573,16.0086,186.33,186.29,5.3678]
[1722066836885,16.0086,186.33,186.28,5.3682]
[1722066837087,45.0,186.32,186.29,5.3678]
[1722066838282,16.0086,186.33,186.3,5.3674]
[1722066838469,16.0086,186.33,186.24,24.94]
[1722066838981,16.0086,186.33,186.3,5.3676]
[1722066839280,16.0086,186.33,186.24,24.94]
[1722066839467,45.0,186.32,186.24,24.94]
[1722066839666,45.0,186.32,186.22,26.01355091]
[1722066839870,45.0,186.32,186.28,5.3682]
[1722066840560,45.0,186.32,186.27,5.3684]
[1722066842664,50.3671,186.32,186.27,5.3684]
[1722066843275,25.3674,186.31,186.25,5.3689]
[1722066843481,45.0,186.3,186.25,5.3689]
[1722066845182,5.3681,186.29,186.23,5.3696]
[1722066845360,45.0,186.28,186.23,5.3696]
[1722066846386,45.0,186.28,186.24,5.3693]
[1722066848671,45.0,186.28,186.16,24.94]
[1722066848873,45.0,186.28,186.17,20.0]
[1722066849094,50.3683,186.28,186.23,5.3696]
[1722066849473,45.0,186.28,186.18,1.07396436]
[1722066849676,45.0,186.29,186.18,1.07396436]
[1722066851172,45.0,186.29,186.25,5.369]
[1722066851479,6.1116,186.31,186.24,12.48]
[1722066851668,6.1116,186.31,186.18,1.07396436]
[1722066851669,6.1116,186.31,186.28,5.3682]
[1722066852069,6.1116,186.31,186.26,12.48]
[1722066852276,6.1116,186.31,186.27,5.3684]
[1722066853901,23.959,186.31,186.24,12.48]
[1722066854099,45.0,186.3,186.24,5.3693]
[1722066854276,45.0,186.3,186.23,12.48]
[1722066854477,57.48,186.3,186.24,5.3693]
[1722066854989,5.3683,186.28,186.22,12.48]
[1722066855199,12.48,186.28,186.23,5.3694]
[1722066855499,57.48,186.27,186.23,5.3694]
[1722066855790,57.48,186.27,186.22,5.3699]
[1722066856383,16.5428,186.26,186.22,5.3699]
[1722066856692,45.0,186.25,186.22,5.3699]
[1722066856877,45.0,186.25,186.21,5.3702]
[1722066857075,45.0,186.25,186.22,5.3699]
[1722066857275,45.0,186.25,186.19,12.48]
[1722066857982,45.0,186.25,185.98,29.94930914]
[1722066858192,45.0,186.25,185.96,40.0]
[1722066858193,57.48,186.25,186.18,12.48]
[1722066858588,62.8493,186.25,186.19,5.3708]
[1722066858898,12.48,186.24,186.19,5.3708]
[1722066859205,45.0,186.23,186.19,5.3708]
[1722066859372,12.48,186.22,186.13,387.4]
[1722066859574,12.48,186.22,186.18,5.371]
[1722066860301,45.0,186.21,186.18,5.371]
[1722066860499,57.48,186.21,186.18,5.371]
[1722066861081,57.48,186.21,186.17,5.3713]
[1722066861986,57.48,186.21,186.18,5.3709]
[1722066862190,57.48,186.21,186.08,21.6037]
[1722066862191,45.0,186.21,186.19,5.3706]
[1722066862391,12.48,186.23,186.19,5.3706]
[1722066862603,45.0,186.22,186.19,5.3706]
[1722066863479,57.48,186.23,186.19,5.3706]
[1722066865295,57.48,186.23,186.18,5.371]
[1722066865516,45.0,186.23,186.18,5.371]
[1722066865805,50.3697,186.23,186.18,5.371]
[1722066867208,45.0,186.23,186.18,5.371]
[1722066868112,50.3697,186.23,186.18,5.371]
[1722066868603,45.0,186.23,186.18,5.371]
[1722066868990,45.0,186.23,186.2,17.8503]
[1722066869198,21.9117,186.26,186.2,12.48]
[1722066869913,49.0228,186.26,186.18,5.3711]
[1722066870205,49.0228,186.26,186.18,17.8511]
[1722066870206,5.3694,186.24,186.18,17.8511]
[1722066870410,5.3694,186.24,186.12,49.92]
[1722066870411,5.3699,186.22,186.17,17.8513]
[1722066870600,5.3704,186.21,186.16,12.48]
[1722066870800,45.0,186.2,186.16,17.8515]
[1722066871622,17.8499,186.23,186.17,5.3711]
[1722066871915,45.0,186.22,186.18,5.3711]
[1722066873825,45.0,186.22,186.19,5.3707]
[1722066873990,45.0,186.23,186.18,5.371]
[1722066874191,12.48,186.25,186.2,5.3705]
[1722066875083,17.8493,186.25,186.2,5.3705]
[1722066875283,20.0,186.24,186.18,5.3711]
[1722066875517,57.48,186.23,186.18,5.3711]
[1722066876191,62.8497,186.23,186.18,5.3711]
[1722066877715,17.8499,186.22,186.17,5.3713]
[1722066878011,45.0,186.21,186.17,5.3713]
[1722066879302,45.0,186.21,186.18,5.3711]
[1722066880012,45.0,186.22,186.18,5.3711]
[1722066881400,45.0,186.22,186.18,5.371]
[1722066881609,50.3697,186.23,186.18,5.371]
[1722066882139,50.3697,186.23,186.18,5.3711]
[1722066883821,5.3699,186.22,186.17,5.3713]
[1722066884011,45.0,186.23,186.16,12.48]
[1722066884210,45.0,186.23,186.2,5.3705]
[1722066884515,5.3692,186.25,186.2,5.3705]
[1722066884700,5.3694,186.24,186.19,17.8508]
[1722066885022,5.3694,186.24,186.19,5.3708]
[1722066885225,5.3697,186.23,186.18,17.8511]
[1722066885401,5.3701,186.22,186.17,5.3713]
[1722066885927,17.8501,186.22,186.17,5.3713]
[1722066886223,45.0,186.21,186.17,5.3713]
[1722066888022,45.0,186.21,186.18,5.3711]
[1722066888932,12.48,186.24,186.19,5.3707]
[1722066889105,45.0,186.23,186.19,5.3707]
[1722066889806,45.0,186.23,186.12,49.92]
[1722066890211,45.0,186.23,186.18,5.3708]
[1722066890523,45.0,186.23,186.12,49.92]
[1722066891124,45.0,186.24,186.12,49.92]
[1722066892211,45.0,186.24,186.2,5.3705]
[1722066898615,57.48,186.24,186.2,5.3705]
[1722066898824,57.48,186.24,186.17,12.48]
[1722066900313,77.48,186.24,186.17,12.48]
[1722066900540,77.48,186.24,186.16,12.48]
[1722066900709,12.48,186.23,186.16,12.48]
[1722066900918,45.0,186.22,186.16,12.48]
[1722066901746,57.48,186.22,186.08,22.67801953]
[1722066902045,57.48,186.22,186.14,12.48]
[1722066903247,57.48,186.22,186.08,21.6037]
[1722066903248,57.48,186.22,186.15,12.48]
[1722066905034,57.48,186.22,186.14,12.48]
[1722066905353,77.48,186.22,186.15,12.48]
[1722066905847,57.48,186.22,186.15,12.48]
[1722066906345,45.0,186.22,186.16,12.48]
[1722066907054,45.0,186.22,186.12,49.92]
[1722066907546,57.48,186.23,186.12,49.92]
[1722066909456,12.48,186.22,186.09,1.07429677]
[1722066909635,45.0,186.21,186.15,12.48]
[1722066913632,36.5428,186.26,186.16,12.48]
[1722066913833,12.48,186.23,186.16,12.48]
[1722066914039,54.68782258,186.22,186.17,12.48]
[1722066914355,45.0,186.22,186.17,12.48]
[1722066914657,45.0,186.23,186.17,12.48]
[1722066914851,9.68781747,186.22,186.17,12.48]
[1722066915930,45.0,186.23,186.17,12.48]
[1722066916136,9.68783092,186.22,186.17,12.48]
[1722066917056,9.68783092,186.22,186.16,12.48]
[1722066917361,45.0,186.21,186.15,12.48]
[1722066919750,12.48,186.22,186.15,12.48]
[1722066919952,9.68828986,186.21,186.15,12.48]
[1722066920466,9.68828986,186.21,186.09,1.07415455]
[1722066920660,9.68828986,186.21,186.14,12.48]
[1722066920837,12.48,186.17,186.08,21.6037]
[1722066921157,12.48,186.17,186.1,12.48]
[1722066921158,45.0,186.16,186.1,12.48]
[1722066921456,45.0,186.16,186.11,12.48]
[1722066921657,45.0,186.17,186.11,12.48]
[1722066921847,45.0,186.17,186.08,21.6037]
[1722066922046,45.0,186.17,186.12,12.48]
[1722066922251,45.0,186.18,186.12,12.48]
[1722066922451,12.48,186.19,186.12,12.48]
[1722066922850,12.48,186.19,186.13,13.55436444]
[1722066923052,28.8083,186.2,186.13,12.48]
[1722066923261,9.68954636,186.19,186.13,12.48]
[1722066923864,28.8083,186.2,186.13,12.48]
[1722066924161,54.68952056,186.19,186.13,12.48]
[1722066924346,45.0,186.19,186.13,12.48]
[1722066924552,28.8083,186.2,186.13,12.48]
[1722066925377,16.3283,186.2,186.14,12.48]
[1722066926769,12.48,186.23,186.08,22.67808561]
[1722066926949,12.48,186.23,186.16,12.48]
[1722066926950,54.68839218,186.22,186.16,12.48]
[1722066927269,45.0,186.22,186.16,12.48]
[1722066927845,57.48,186.22,186.15,12.48]
[1722066928250,45.0,186.22,186.15,12.48]
[1722066928771,50.37,186.22,186.17,5.3711]
[1722066930065,12.48,186.23,186.2,5.3703]
[1722066930262,12.48,186.23,186.15,12.48]
[1722066930263,16.3806,186.24,186.19,5.3708]
[1722066931148,16.3806,186.24,186.18,12.48]
[1722066931149,34.2302,186.24,186.18,12.48]
[1722066931364,45.0,186.23,186.17,12.48]
[1722066931767,50.3699,186.23,186.18,5.3709]
[1722066932167,45.0,186.23,186.19,5.3708]
[1722066932350,19.1233,186.21,186.16,5.3716]
[1722066932564,57.48,186.2,186.16,5.3716]
[1722066932748,57.48,186.2,186.13,12.48]
[1722066932749,57.48,186.2,186.17,5.3714]
[1722066933176,45.0,186.2,186.17,5.3714]
[1722066933371,6.6433,186.21,186.18,5.371]
[1722066933554,12.48,186.22,186.18,5.371]
[1722066933750,12.48,186.23,186.16,12.48]
[1722066933957,54.68834018,186.22,186.18,5.371]
[1722066934169,5.3703,186.21,186.16,5.3714]
[1722066934475,45.0,186.2,186.16,5.3714]
[1722066935653,5.3703,186.21,186.16,5.3714]
[1722066936060,17.8503,186.21,186.16,5.3714]
[1722066936254,62.8505,186.2,186.13,12.48]
[1722066936463,57.48,186.2,186.13,12.48]
[1722066936652,45.0,186.2,186.14,12.48]
[1722066937173,45.0,186.2,186.08,22.67809323]
[1722066937364,45.0,186.2,186.14,12.48]
[1722066937975,45.0,186.2,186.08,21.6037]
[1722066938173,50.3706,186.2,186.15,5.3717]
[1722066938559,45.0,186.2,186.16,5.3716]
[1722066939067,50.3705,186.2,186.15,5.3719]
[1722066939271,50.3705,186.2,186.08,21.6037]
[1722066939272,17.8508,186.19,186.14,5.3722]
[1722066939476,45.0,186.18,186.14,5.3722]
[1722066940359,57.48,186.18,186.14,5.3722]
[1722066940564,62.8511,186.18,186.13,5.3725]
[1722066940776,57.48,186.18,186.14,5.3722]
[1722066941379,57.48,186.18,186.15,5.3719]
[1722066941581,45.0,186.18,186.12,12.48]
[1722066941781,45.0,186.18,186.16,5.3716]
[1722066942083,12.48,186.19,186.08,21.6037]
[1722066942084,15.8987,186.29,186.28,5.3682]
[1722066942381,6.081,186.33,186.3,5.3676]
[1722066942382,21.9797,186.33,186.3,5.3676]
[1722066942550,15.8987,186.33,186.32,17.8471]
[1722066942869,15.8987,186.38,186.35,5.3661]
[1722066943069,15.8987,186.38,186.24,6.6059]
[1722066943070,15.8987,186.38,186.33,12.48]
[1722066943277,15.8987,186.38,186.32,12.48]
[1722066943659,28.3787,186.38,186.31,12.48]
[1722066943876,12.48,186.37,186.25,1.07327156]
[1722066944059,15.8987,186.38,186.29,12.48]
[1722066944060,12.48,186.36,186.29,12.48]
[1722066944756,45.0,186.35,186.29,12.48]
[1722066944958,15.8987,186.38,186.29,12.48]
[1722066945161,15.8987,186.38,186.26,1.07350556]
[1722066945162,12.48,186.37,186.33,5.3665]
[1722066945475,12.48,186.35,186.29,12.48]
[1722066945677,45.0,186.34,186.29,12.48]
[1722066945977,45.0,186.34,186.32,5.3669]
[1722066946278,12.48,186.33,186.19,7.67940508]
[1722066946467,12.48,186.3,186.23,12.48]
[1722066946656,12.48,186.3,186.27,5.3684]
[1722066947061,12.48,186.3,186.23,12.48]
[1722066947356,12.48,186.3,186.27,5.3685]
[1722066947874,12.48,186.3,186.28,5.3682]
[1722066949386,11.4478,186.33,186.28,5.3682]
[1722066949697,12.48,186.31,186.28,5.3682]
[1722066949983,45.0,186.3,186.29,5.3679]
[1722066950179,45.0,186.3,186.27,5.3683]
[1722066951457,11.4479,186.33,186.28,5.3681]
[1722066951676,11.4479,186.33,186.27,5.3685]
[1722066951870,12.48,186.31,186.27,5.3685]
[1722066952070,45.0,186.3,186.27,5.3685]
[1722066952276,12.48,186.29,186.19,6.6059]
[1722066952476,57.48,186.28,186.19,6.6059]
[1722066952680,12.48,186.28,186.25,5.3691]
[1722066953981,12.48,186.28,186.25,5.369]
[1722066954691,12.48,186.29,186.25,5.369]
[1722066954882,57.48,186.28,186.25,5.369]
[1722066955089,45.0,186.28,186.22,12.48]
[1722066955281,12.48,186.28,186.22,12.48]
[1722066955466,45.0,186.29,186.22,12.48]
[1722066955782,12.48,186.28,186.22,12.48]
[1722066956186,12.48,186.28,186.25,5.369]
[1722066959582,45.0,186.27,186.25,5.369]
[1722066960169,45.0,186.27,186.25,5.3688]
[1722066960361,12.48,186.28,186.21,12.48]
[1722066960564,12.48,186.27,186.24,5.3693]
[1722066960791,12.48,186.27,186.2,12.48]
[1722066960792,2.19195469,186.33,186.25,12.48]
[1722066960963,41.48574452,186.35,186.34,5.3665]
[1722066960964,15.8987,186.35,186.34,5.3665]
[1722066961171,6.081,186.38,186.31,12.48]
[1722066961375,12.48,186.39,186.35,5.366]
[1722066961896,21.2635,186.4,186.35,5.366]
[1722066962193,12.48,186.38,186.34,5.3664]
[1722066962401,12.48,186.37,186.3,12.48]
[1722066962762,12.48,186.38,186.31,13.55334704]
[1722066962991,12.48,186.38,186.31,12.48]
[1722066963587,12.48,186.37,186.3,12.48]
[1722066963891,12.48,186.37,186.33,5.3665]
[1722066964187,17.8451,186.39,186.34,5.3664]
[1722066964387,28.3787,186.4,186.35,5.3661]
[1722066964582,28.3787,186.4,186.36,5.3659]
[1722066964890,15.8987,186.4,186.36,12.48]
[1722066965088,12.48,186.42,186.36,12.48]
[1722066965394,12.48,186.42,186.37,5.3654]
[1722066967272,12.48,186.41,186.34,12.48]
[1722066968275,20.4635,186.44,186.35,12.48]
[1722066968470,12.48,186.43,186.36,12.48]
[1722066969979,12.48,186.4,186.33,12.48]
[1722066971092,5.3644,186.42,186.33,12.48]
[1722066971309,12.48,186.4,186.33,12.48]
[1722066971601,12.48,186.39,186.32,12.48]
[1722066973399,20.0,186.43,186.34,12.48]
[1722066973578,12.48,186.42,186.35,12.48]
[1722066973979,20.4634,186.44,186.34,12.48]
[1722066973980,12.48,186.41,186.34,12.48]
[1722066974596,12.48,186.41,186.31,6.0466]
[1722066974597,12.48,186.4,186.33,12.48]
[1722066975399,12.48,186.4,186.33,13.55306758]
[1722066975596,12.48,186.41,186.34,12.48]
[1722066975774,12.48,186.41,186.35,1.07306648]
[1722066975970,12.48,186.41,186.36,1.07306658]
[1722066976805,12.48,186.41,186.34,12.48]
[1722066977678,17.8445,186.41,186.34,12.48]
[1722066978507,12.48,186.39,186.27,7.11970965]
[1722066978679,12.48,186.38,186.32,12.48]
[1722066979281,20.0,186.43,186.33,12.48]
[1722066979487,12.48,186.42,186.35,12.48]
[1722066980311,20.4634,186.44,186.35,12.48]
[1722066980607,12.48,186.42,186.35,12.48]
[1722066981383,17.845,186.4,186.31,1.07300915]
[1722066981703,12.48,186.39,186.32,12.48]
[1722066981877,12.48,186.39,186.33,12.48]
[1722066982084,12.48,186.4,186.33,12.48]
[1722066982788,12.48,186.4,186.29,1.07312347]
[1722066983006,12.48,186.4,186.33,12.48]
[1722066984796,12.48,186.4,186.28,66.07313013]
[1722066985110,45.0,186.43,186.32,12.48]
[1722066985420,12.48,186.4,186.34,12.48]
[1722066986075,12.48,186.4,186.28,20.0]
[1722066986076,12.48,186.38,186.31,12.48]
[1722066986504,12.48,186.38,186.32,1.07328581]
[1722066987224,12.48,186.38,186.32,12.48]
[1722066987904,12.48,186.38,186.31,12.48]
[1722066988087,12.48,186.38,186.32,12.48]
[1722066988293,12.48,186.39,186.33,12.48]
[1722066988599,12.48,186.4,186.33,12.48]
[1722066988800,12.48,186.4,186.28,20.0]
[1722066988983,12.48,186.4,186.33,12.48]
[1722066989184,12.48,186.4,186.32,12.48]
[1722066989398,12.48,186.39,186.32,12.48]
[1722066990291,12.48,186.4,186.33,12.48]
[1722066990991,12.48,186.4,186.29,1.07325385]
[1722066991196,12.48,186.4,186.33,12.48]
[1722066991689,20.0,186.41,186.32,12.48]
[1722066991889,12.48,186.39,186.32,12.48]
[1722066993004,12.48,186.39,186.29,1.07325385]
[1722066993199,12.48,186.39,186.28,20.0]
[1722066993392,12.48,186.38,186.31,12.48]
[1722066995293,12.48,186.38,186.35,5.366]
[1722066997405,12.48,186.38,186.31,12.48]
[1722066997406,20.0,186.4,186.31,12.48]
[1722066997616,20.0,186.4,186.29,1.07328155]
[1722066997617,45.0,186.39,186.32,12.48]
[1722066997789,32.48,186.4,186.33,12.48]
[1722066997991,6.3834,186.41,186.39,5.365]
[1722066998294,57.48,186.4,186.38,5.3653]
[1722066998520,12.48,186.42,186.35,12.48]
[1722066998887,20.4634,186.44,186.35,12.48]
[1722066999187,12.48,186.42,186.35,12.48]
[1722066999395,15.0998,186.44,186.38,12.48]
[1722067000015,12.48,186.42,186.35,12.48]
[1722067000227,15.3366,186.48,186.37,12.48]
[1722067000392,12.48,186.44,186.37,12.48]
[1722067000892,12.48,186.45,186.38,12.48]
[1722067001493,12.48,186.45,186.35,1.07289071]
[1722067001693,12.48,186.45,186.36,1.07292535]
[1722067001904,5.363,186.46,186.38,12.48]
[1722067002317,12.48,186.45,186.38,12.48]
[1722067002613,5.3639,186.44,186.36,1.07292535]
[1722067002916,12.48,186.42,186.31,20.0]
[1722067003094,12.48,186.42,186.35,12.48]
[1722067003289,12.48,186.42,186.36,12.48]
[1722067003613,12.48,186.42,186.31,21.07310882]
[1722067003813,57.48,186.41,186.31,21.07310882]
[1722067004018,57.48,186.41,186.34,12.48]
[1722067004416,45.0,186.41,186.34,12.48]
[1722067004719,12.48,186.41,186.34,12.48]
[1722067005491,12.48,186.41,186.31,20.0]
[1722067005697,45.0,186.4,186.31,20.0]
[1722067005894,12.48,186.39,186.32,12.48]
[1722067010110,12.48,186.39,186.24,1.07324782]
[1722067010111,12.48,186.39,186.25,22.0853]
[1722067010393,57.48,186.38,186.31,12.48]
[1722067010899,57.48,186.38,186.26,20.0]
[1722067010900,12.48,186.36,186.26,20.0]
[1722067011104,12.48,186.36,186.29,12.48]
[1722067011312,45.0,186.35,186.29,12.48]
[1722067011611,20.0,186.4,186.38,5.3653]
[1722067011817,20.0,186.4,186.39,5.365]
[1722067012513,20.0,186.4,186.3,49.92]
[1722067013019,28.4279,186.41,186.34,12.48]
[1722067015108,12.48,186.4,186.33,12.48]
[1722067015616,12.48,186.39,186.31,12.48]
[1722067015919,27.9671901,186.39,186.31,12.48]
[1722067016094,12.48,186.39,186.31,12.48]
[1722067016906,12.48,186.38,186.31,12.48]
[1722067017323,57.48,186.37,186.3,12.48]
[1722067018909,45.0,186.37,186.36,5.3659]
[1722067019118,45.0,186.37,186.3,12.48]
[1722067019119,57.48,186.37,186.34,5.3662]
[1722067021692,45.0,186.37,186.34,5.3662]
[1722067021914,12.48,186.37,186.34,5.3662]
[1722067022227,45.0,186.36,186.34,5.3662]
[1722067022627,45.3651,186.39,186.35,5.3661]
[1722067022628,12.48,186.37,186.35,5.3661]
[1722067023725,25.3651,186.39,186.35,5.3661]
[1722067023903,12.48,186.37,186.35,5.3661]
[1722067025027,45.0,186.38,186.33,5.3665]
[1722067025028,12.48,186.36,186.33,5.3665]
[1722067025329,12.48,186.36,186.34,5.3665]
[1722067025528,12.48,186.36,186.29,12.48]
[1722067025823,12.48,186.36,186.34,5.3665]
[1722067026335,57.48,186.35,186.25,22.0853]
[1722067026501,57.48,186.35,186.28,12.48]
[1722067027000,45.0,186.35,186.29,12.48]
[1722067027823,57.48,186.35,186.28,12.48]
[1722067028721,57.48,186.35,186.22,1.07351014]
[1722067028722,12.48,186.34,186.21,21.9914]
[1722067028905,28.8036,186.34,186.32,5.3668]
[1722067029103,12.48,186.33,186.3,5.3676]
[1722067029301,12.48,186.31,186.3,5.3676]
[1722067029827,45.0,186.32,186.3,5.3676]
[1722067030615,45.0,186.32,186.29,5.3678]
[1722067030819,57.48,186.32,186.29,5.3678]
[1722067031122,45.0,186.32,186.29,5.3678]
[1722067031707,45.0,186.32,186.3,5.3676]
[1722067033218,45.0,186.32,186.29,5.3678]
[1722067035634,45.0,186.32,186.3,5.3676]
[1722067035815,45.0,186.32,186.29,5.3679]
[1722067036626,45.0,186.32,186.3,5.3676]
[1722067036835,57.48,186.33,186.3,5.3676]
[1722067038234,12.48,186.31,186.21,21.9914]
[1722067038407,5.3673,186.32,186.27,5.3683]
[1722067038610,12.48,186.29,186.27,5.3683]
[1722067039219,12.48,186.3,186.27,5.3683]
[1722067039637,12.48,186.3,186.28,5.3682]
[1722067040718,45.0,186.29,186.28,5.3682]
[1722067041014,45.0,186.29,186.18,1.07378358]
[1722067041219,45.0,186.29,186.23,12.48]
[1722067042021,45.0,186.29,186.28,5.3682]
[1722067044437,21.6901,186.34,186.28,5.3682]
[1722067044438,16.3236,186.34,186.32,5.3668]
[1722067046943,15.4359,186.38,186.33,12.48]
[1722067047143,15.4359,186.38,186.34,12.48]
[1722067047322,15.4359,186.38,186.37,5.3656]
[1722067047521,15.4359,186.38,186.34,12.48]
[1722067047722,15.4359,186.38,186.33,12.48]
[1722067049244,15.4359,186.38,186.32,12.48]
[1722067050652,15.4359,186.38,186.31,12.48]
[1722067050653,27.9159,186.38,186.31,12.48]
[1722067050965,45.0,186.37,186.31,12.48]
[1722067051138,45.0,186.37,186.35,5.366]
[1722067051339,45.0,186.37,186.34,5.3664]
[1722067052839,57.48,186.37,186.33,5.3668]
[1722067053146,57.48,186.37,186.34,5.3665]
[1722067055139,57.48,186.37,186.35,5.3662]
[1722067055358,15.4359,186.38,186.36,5.3659]
[1722067056534,15.4359,186.38,186.32,12.48]
[1722067057154,45.0,186.37,186.32,12.48]
[1722067057756,45.0,186.37,186.35,5.3659]
[1722067057965,45.0,186.37,186.36,5.3659]
[1722067058843,45.0,186.37,186.35,5.3661]
[1722067059536,45.0,186.37,186.36,5.3659]
[1722067060541,15.4359,186.38,186.37,5.3656]
[1722067060844,60.4359,186.38,186.37,5.3656]
[1722067061049,15.4359,186.38,186.37,5.3656]
[1722067062861,15.4359,186.38,186.33,12.48]
[1722067062862,60.4359,186.38,186.33,12.48]
[1722067063456,60.4359,186.38,186.32,12.48]
[1722067064336,60.4359,186.38,186.33,12.48]
[1722067064536,15.4359,186.38,186.34,12.48]
[1722067065366,15.4359,186.38,186.33,12.48]
[1722067066057,45.0,186.37,186.33,12.48]
[1722067066363,45.0,186.37,186.31,12.48]
[1722067066853,45.0,186.37,186.34,5.3664]
[1722067067251,45.0,186.37,186.35,5.3661]
[1722067067940,45.0,186.37,186.32,12.48]
[1722067068149,45.0,186.37,186.35,5.3662]
[1722067069261,45.0,186.37,186.34,5.3664]
[1722067070262,45.0,186.37,186.33,5.3667]
[1722067070862,45.0,186.37,186.34,5.3664]
[1722067073055,45.0,186.37,186.33,5.3667]
[1722067073553,12.48,186.34,186.3,5.3674]
[1722067073863,45.0,186.33,186.3,5.3674]
[1722067074060,57.48,186.33,186.29,5.3679]